[Event "January 2 Early 2024"]
[Site "https://www.chess.com"]
[Date "2024.01.02"]
[Round "4"]
[White "Babayeva, Nasrin"]
[Black "Delgado Kuffo, Andres"]
[Result "1/2-1/2"]
[Board "227"]
[TimeControl "180+1"]
[WhiteFideId "13416626"]
[BlackFideId "3600475"]
[WhiteElo "1797"]
[BlackElo "2233"]
[WhiteTeam "AZE"]
[BlackTeam "ECU"]
[WhiteClock "0:00:15"]
[BlackClock "0:00:11"]

1. e4 {[%clk 0:03:00]}  e6 {[%clk 0:02:46]} 2. Qe2 {[%clk 0:03:00]}  c5 {[%clk 0:02:43]} 3. f4 {[%clk 0:02:57]}  Nc6 {[%clk 0:02:40]} 4. c3 {[%clk 0:02:54]}  g6 {[%clk 0:02:38]} 5. d3 {[%clk 0:02:54]}  Bg7 {[%clk 0:02:38]} 6. Nf3 {[%clk 0:02:52]}  Nge7 {[%clk 0:02:37]} 7. Be3 {[%clk 0:02:50]}  d6 {[%clk 0:02:31]} 8. Nbd2 {[%clk 0:02:49]}  O-O {[%clk 0:02:18]} 9. Qf2 {[%clk 0:02:43]}  b5 {[%clk 0:02:14]} 10. d4 {[%clk 0:02:35]}  b4 {[%clk 0:02:13]} 11. Bb5 {[%clk 0:02:18]}  bxc3 {[%clk 0:02:09]} 12. bxc3 {[%clk 0:02:17]}  Qa5 {[%clk 0:02:09]} 13. Bxc6 {[%clk 0:02:13]}  Nxc6 {[%clk 0:02:01]} 14. O-O {[%clk 0:02:09]}  Qxc3 {[%clk 0:02:00]} 15. Rfc1 {[%clk 0:02:08]}  Qd3 {[%clk 0:01:43]} 16. Ne1 {[%clk 0:02:01]}  Qxd4 {[%clk 0:01:38]} 17. Bxd4 {[%clk 0:01:59]}  Bxd4 {[%clk 0:01:37]} 18. Nc4 {[%clk 0:01:44]}  Bxf2+ {[%clk 0:01:35]} 19. Kxf2 {[%clk 0:01:44]}  Rd8 {[%clk 0:01:30]} 20. Rd1 {[%clk 0:01:41]}  Nd4 {[%clk 0:01:29]} 21. Nf3 {[%clk 0:01:37]}  Ba6 {[%clk 0:01:19]} 22. Nxd4 {[%clk 0:01:33]}  cxd4 {[%clk 0:00:46]} 23. Rxd4 {[%clk 0:01:33]}  Bxc4 {[%clk 0:00:45]} 24. Rxc4 {[%clk 0:01:33]}  Rac8 {[%clk 0:00:46]} 25. Rac1 {[%clk 0:01:32]}  Rxc4 {[%clk 0:00:43]} 26. Rxc4 {[%clk 0:01:33]}  d5 {[%clk 0:00:42]} 27. exd5 {[%clk 0:01:20]}  Rxd5 {[%clk 0:00:42]} 28. Ra4 {[%clk 0:01:14]}  a5 {[%clk 0:00:40]} 29. Ke3 {[%clk 0:01:09]}  h5 {[%clk 0:00:38]} 30. g3 {[%clk 0:01:07]}  Kg7 {[%clk 0:00:37]} 31. Rc4 {[%clk 0:00:55]}  Kf6 {[%clk 0:00:35]} 32. Rc7 {[%clk 0:00:50]}  Rb5 {[%clk 0:00:32]} 33. Ra7 {[%clk 0:00:46]}  Rb2 {[%clk 0:00:28]} 34. Rxa5 {[%clk 0:00:46]}  Rxh2 {[%clk 0:00:27]} 35. a4 {[%clk 0:00:45]}  Ra2 {[%clk 0:00:22]} 36. Ra7 {[%clk 0:00:42]}  Ra3+ {[%clk 0:00:22]} 37. Kf2 {[%clk 0:00:40]}  Kf5 {[%clk 0:00:15]} 38. Rxf7+ {[%clk 0:00:38]}  Kg4 {[%clk 0:00:15]} 39. Rf6 {[%clk 0:00:34]}  Ra2+ {[%clk 0:00:15]} 40. Ke3 {[%clk 0:00:32]}  Kxg3 {[%clk 0:00:15]} 41. Rxg6+ {[%clk 0:00:32]}  Kh4 {[%clk 0:00:15]} 42. Rxe6 {[%clk 0:00:31]}  Rxa4 {[%clk 0:00:15]} 43. f5 {[%clk 0:00:25]}  Kg5 {[%clk 0:00:15]} 44. f6 {[%clk 0:00:21]}  Kg6 {[%clk 0:00:13]} 45. Kf3 {[%clk 0:00:19]}  Kf7 {[%clk 0:00:11]} 46. Re5 {[%clk 0:00:17]}  h4 {[%clk 0:00:11]} 47. Rf5 {[%clk 0:00:16]}  Rb4 {[%clk 0:00:09]} 48. Rf4 {[%clk 0:00:14]}  Rxf4+ {[%clk 0:00:09]} 49. Kxf4 {[%clk 0:00:14]}  Kxf6 {[%clk 0:00:10]} 50. Kg4 {[%clk 0:00:15]}  Kg6 {[%clk 0:00:11]} 51. Kxh4 {[%clk 0:00:15]} 1/2-1/2

[Event "January 2 Early 2024"]
[Site "https://www.chess.com"]
[Date "2024.01.02"]
[Round "4"]
[White "Merikard"]
[Black "Gulamirian, Korun"]
[Result "1-0"]
[Board "228"]
[TimeControl "180+1"]
[BlackFideId "4144899"]
[WhiteElo "2233"]
[BlackElo "1557"]
[BlackTeam "RUS"]
[WhiteClock "0:01:01"]
[BlackClock "0:00:00"]

1. d4 {[%clk 0:02:52]}  Nf6 {[%clk 0:02:22]} 2. c4 {[%clk 0:02:50]}  c5 {[%clk 0:02:17]} 3. d5 {[%clk 0:02:50]}  b5 {[%clk 0:02:16]} 4. cxb5 {[%clk 0:02:50]}  a6 {[%clk 0:02:17]} 5. b6 {[%clk 0:02:50]}  Qxb6 {[%clk 0:02:14]} 6. Nc3 {[%clk 0:02:51]}  d6 {[%clk 0:02:13]} 7. e4 {[%clk 0:02:49]}  Nbd7 {[%clk 0:02:10]} 8. Nf3 {[%clk 0:02:48]}  g6 {[%clk 0:02:10]} 9. Nd2 {[%clk 0:02:47]}  Bg7 {[%clk 0:02:09]} 10. Nc4 {[%clk 0:02:47]}  Qc7 {[%clk 0:02:04]} 11. Be2 {[%clk 0:02:47]}  Bb7 {[%clk 0:02:04]} 12. O-O {[%clk 0:02:46]}  O-O {[%clk 0:02:04]} 13. h3 {[%clk 0:02:46]}  Rfb8 {[%clk 0:02:04]} 14. Bg5 {[%clk 0:02:42]}  Bc8 {[%clk 0:01:55]} 15. Rb1 {[%clk 0:02:29]}  Qd8 {[%clk 0:01:51]} 16. Re1 {[%clk 0:02:28]}  Nb6 {[%clk 0:01:49]} 17. Na5 {[%clk 0:02:13]}  Bd7 {[%clk 0:01:47]} 18. Qd2 {[%clk 0:02:07]}  Na4 {[%clk 0:01:30]} 19. Nxa4 {[%clk 0:01:57]}  Bxa4 {[%clk 0:01:28]} 20. b3 {[%clk 0:01:57]}  Nxe4 {[%clk 0:01:26]} 21. Qe3 {[%clk 0:01:47]}  Nxg5 {[%clk 0:01:15]} 22. Nc6 {[%clk 0:01:39]}  Bxc6 {[%clk 0:01:14]} 23. dxc6 {[%clk 0:01:39]}  Ne6 {[%clk 0:01:07]} 24. Bg4 {[%clk 0:01:36]}  Qc8 {[%clk 0:00:53]} 25. Rbd1 {[%clk 0:01:29]}  Bd4 {[%clk 0:00:47]} 26. Qh6 {[%clk 0:01:27]}  Qxc6 {[%clk 0:00:33]} 27. Re2 {[%clk 0:01:13]}  Bg7 {[%clk 0:00:28]} 28. Qh4 {[%clk 0:01:11]}  d5 {[%clk 0:00:18]} 29. Rde1 {[%clk 0:01:10]}  Bf6 {[%clk 0:00:12]} 30. Qg3 {[%clk 0:01:07]}  Nd4 {[%clk 0:00:10]} 31. Rd2 {[%clk 0:01:02]}  e5 {[%clk 0:00:04]} 32. h4 {[%clk 0:01:02]}  e4 {[%clk 0:00:00]} 33. h5 {[%clk 0:01:01]} 1-0

[Event "January 2 Early 2024"]
[Site "https://www.chess.com"]
[Date "2024.01.02"]
[Round "5"]
[White "Svane, Frederik"]
[Black "Vachier-Lagrave, Maxime"]
[Result "1-0"]
[Board "2"]
[TimeControl "180+1"]
[WhiteFideId "12923044"]
[BlackFideId "623539"]
[WhiteElo "3031"]
[BlackElo "3196"]
[WhiteTeam "GER"]
[BlackTeam "FRA"]
[WhiteClock "0:00:10"]
[BlackClock "0:00:07"]

1. e4 {[%clk 0:03:00]}  c5 {[%clk 0:02:59]} 2. Nf3 {[%clk 0:03:01]}  d6 {[%clk 0:02:59]} 3. Bb5+ {[%clk 0:03:01]}  Bd7 {[%clk 0:02:59]} 4. c4 {[%clk 0:03:02]}  Nc6 {[%clk 0:02:54]} 5. Nc3 {[%clk 0:03:02]}  e5 {[%clk 0:02:55]} 6. d3 {[%clk 0:03:02]}  Nge7 {[%clk 0:02:55]} 7. h4 {[%clk 0:03:02]}  h5 {[%clk 0:02:54]} 8. a3 {[%clk 0:02:52]}  Ng6 {[%clk 0:02:53]} 9. b4 {[%clk 0:02:42]}  Be7 {[%clk 0:02:51]} 10. Nd5 {[%clk 0:02:35]}  Bg4 {[%clk 0:02:33]} 11. bxc5 {[%clk 0:02:25]}  dxc5 {[%clk 0:02:34]} 12. Nxe7 {[%clk 0:02:25]}  Qxe7 {[%clk 0:02:32]} 13. Bxc6+ {[%clk 0:02:13]}  bxc6 {[%clk 0:02:32]} 14. Bg5 {[%clk 0:02:13]}  f6 {[%clk 0:02:28]} 15. Be3 {[%clk 0:02:13]}  O-O {[%clk 0:02:26]} 16. Qa4 {[%clk 0:02:07]}  Qd6 {[%clk 0:02:20]} 17. O-O-O {[%clk 0:01:56]}  a5 {[%clk 0:02:13]} 18. Kc2 {[%clk 0:01:49]}  Rfd8 {[%clk 0:02:08]} 19. Rd2 {[%clk 0:01:36]}  Nf8 {[%clk 0:02:09]} 20. Ng1 {[%clk 0:01:26]}  f5 {[%clk 0:01:56]} 21. f3 {[%clk 0:01:23]}  f4 {[%clk 0:01:56]} 22. Bf2 {[%clk 0:01:22]}  Bd7 {[%clk 0:01:54]} 23. Ne2 {[%clk 0:01:20]}  Ne6 {[%clk 0:01:53]} 24. Rb1 {[%clk 0:01:19]}  Qc7 {[%clk 0:01:53]} 25. Kc1 {[%clk 0:01:13]}  Rdb8 {[%clk 0:01:51]} 26. Rxb8+ {[%clk 0:01:12]}  Rxb8 {[%clk 0:01:52]} 27. Rb2 {[%clk 0:01:12]}  Rd8 {[%clk 0:01:49]} 28. Be1 {[%clk 0:01:10]}  Ra8 {[%clk 0:01:46]} 29. Qb3 {[%clk 0:01:00]}  Qd6 {[%clk 0:01:47]} 30. Kc2 {[%clk 0:00:53]}  Be8 {[%clk 0:01:46]} 31. Qb7 {[%clk 0:00:53]}  Rd8 {[%clk 0:01:46]} 32. Qb3 {[%clk 0:00:46]}  a4 {[%clk 0:01:45]} 33. Qc3 {[%clk 0:00:46]}  Ra8 {[%clk 0:01:29]} 34. Bf2 {[%clk 0:00:43]}  Qc7 {[%clk 0:01:22]} 35. Kc1 {[%clk 0:00:41]}  Kh7 {[%clk 0:01:21]} 36. g3 {[%clk 0:00:28]}  Bd7 {[%clk 0:01:11]} 37. gxf4 {[%clk 0:00:28]}  exf4 {[%clk 0:01:12]} 38. Qc2 {[%clk 0:00:15]}  Qd6 {[%clk 0:01:05]} 39. Rb7 {[%clk 0:00:13]}  Kh8 {[%clk 0:01:03]} 40. Qc3 {[%clk 0:00:13]}  Rb8 {[%clk 0:00:56]} 41. Rxb8+ {[%clk 0:00:13]}  Qxb8 {[%clk 0:00:57]} 42. Kc2 {[%clk 0:00:11]}  Kh7 {[%clk 0:00:54]} 43. Qb2 {[%clk 0:00:11]}  Qc7 {[%clk 0:00:51]} 44. Be1 {[%clk 0:00:10]}  Be8 {[%clk 0:00:48]} 45. Bc3 {[%clk 0:00:08]}  Qf7 {[%clk 0:00:41]} 46. Qb8 {[%clk 0:00:09]}  g5 {[%clk 0:00:35]} 47. hxg5 {[%clk 0:00:08]}  h4 {[%clk 0:00:35]} 48. Qe5 {[%clk 0:00:09]}  Kg6 {[%clk 0:00:27]} 49. Qh8 {[%clk 0:00:06]}  Kxg5 {[%clk 0:00:14]} 50. Ng1 {[%clk 0:00:06]}  Kg6 {[%clk 0:00:14]} 51. Qxh4 {[%clk 0:00:06]}  Bd7 {[%clk 0:00:11]} 52. Nh3 {[%clk 0:00:06]}  Qf8 {[%clk 0:00:11]} 53. Qg4+ {[%clk 0:00:06]}  Kf7 {[%clk 0:00:11]} 54. Ng5+ {[%clk 0:00:06]}  Ke7 {[%clk 0:00:10]} 55. Nxe6 {[%clk 0:00:07]}  Bxe6 {[%clk 0:00:11]} 56. Qg5+ {[%clk 0:00:08]}  Kd7 {[%clk 0:00:11]} 57. Be5 {[%clk 0:00:06]}  Kc8 {[%clk 0:00:07]} 58. Qxf4 {[%clk 0:00:07]}  Qg8 {[%clk 0:00:07]} 59. Qg3 {[%clk 0:00:07]}  Qh7 {[%clk 0:00:08]} 60. Qg7 {[%clk 0:00:07]}  Qxg7 {[%clk 0:00:08]} 61. Bxg7 {[%clk 0:00:08]}  Kd7 {[%clk 0:00:09]} 62. Kd2 {[%clk 0:00:09]}  Bh3 {[%clk 0:00:09]} 63. Ke3 {[%clk 0:00:09]}  Kc7 {[%clk 0:00:08]} 64. Bf8 {[%clk 0:00:09]}  Kb6 {[%clk 0:00:09]} 65. f4 {[%clk 0:00:10]}  Bg4 {[%clk 0:00:07]} 66. f5 {[%clk 0:00:10]} 1-0

[Event "January 2 Early 2024"]
[Site "https://www.chess.com"]
[Date "2024.01.02"]
[Round "5"]
[White "Zemlyanskii, Ivan"]
[Black "Paravyan, David"]
[Result "1/2-1/2"]
[Board "3"]
[TimeControl "180+1"]
[WhiteFideId "24249971"]
[BlackFideId "4194985"]
[WhiteElo "3013"]
[BlackElo "3104"]
[WhiteTeam "RUS"]
[BlackTeam "FID"]
[WhiteClock "0:00:21"]
[BlackClock "0:00:36"]

1. d4 {[%clk 0:03:00]}  d5 {[%clk 0:02:59]} 2. c4 {[%clk 0:03:01]}  dxc4 {[%clk 0:02:59]} 3. e3 {[%clk 0:03:01]}  Nf6 {[%clk 0:03:00]} 4. Bxc4 {[%clk 0:03:01]}  e6 {[%clk 0:03:01]} 5. Nf3 {[%clk 0:03:00]}  c5 {[%clk 0:03:01]} 6. O-O {[%clk 0:03:00]}  Nc6 {[%clk 0:03:00]} 7. Qe2 {[%clk 0:02:55]}  a6 {[%clk 0:03:00]} 8. a4 {[%clk 0:02:54]}  cxd4 {[%clk 0:02:53]} 9. Rd1 {[%clk 0:02:53]}  Be7 {[%clk 0:02:52]} 10. exd4 {[%clk 0:02:53]}  O-O {[%clk 0:02:52]} 11. Nc3 {[%clk 0:02:54]}  Re8 {[%clk 0:02:48]} 12. Bf4 {[%clk 0:02:27]}  Nd5 {[%clk 0:02:43]} 13. Bg3 {[%clk 0:02:27]}  Ncb4 {[%clk 0:02:31]} 14. Ne5 {[%clk 0:02:14]}  Bd7 {[%clk 0:02:30]} 15. Qf3 {[%clk 0:01:55]}  Bf6 {[%clk 0:02:27]} 16. Nxd5 {[%clk 0:01:50]}  Nxd5 {[%clk 0:02:27]} 17. Bxd5 {[%clk 0:01:51]}  exd5 {[%clk 0:02:26]} 18. Qxd5 {[%clk 0:01:52]}  Bxe5 {[%clk 0:02:08]} 19. dxe5 {[%clk 0:01:48]}  Bg4 {[%clk 0:02:07]} 20. f3 {[%clk 0:01:25]}  Qxd5 {[%clk 0:02:05]} 21. Rxd5 {[%clk 0:01:26]}  Be6 {[%clk 0:02:05]} 22. Rd6 {[%clk 0:01:25]}  Rac8 {[%clk 0:02:04]} 23. Rad1 {[%clk 0:01:19]}  h5 {[%clk 0:01:51]} 24. Bf4 {[%clk 0:01:07]}  Rc4 {[%clk 0:01:46]} 25. R1d4 {[%clk 0:01:05]}  Rec8 {[%clk 0:01:45]} 26. Bd2 {[%clk 0:01:04]}  Kh7 {[%clk 0:01:29]} 27. a5 {[%clk 0:01:03]}  Rxd4 {[%clk 0:01:26]} 28. Rxd4 {[%clk 0:01:03]}  Rc5 {[%clk 0:01:25]} 29. Re4 {[%clk 0:00:58]}  Rc2 {[%clk 0:01:13]} 30. Bc3 {[%clk 0:00:58]}  g5 {[%clk 0:01:01]} 31. Rd4 {[%clk 0:00:35]}  Rc1+ {[%clk 0:01:00]} 32. Kf2 {[%clk 0:00:35]}  Rc2+ {[%clk 0:01:00]} 33. Rd2 {[%clk 0:00:32]}  Rxd2+ {[%clk 0:01:00]} 34. Bxd2 {[%clk 0:00:33]}  Kg6 {[%clk 0:01:01]} 35. h3 {[%clk 0:00:33]}  h4 {[%clk 0:00:56]} 36. f4 {[%clk 0:00:26]}  g4 {[%clk 0:00:50]} 37. hxg4 {[%clk 0:00:25]}  Bxg4 {[%clk 0:00:51]} 38. Ke3 {[%clk 0:00:25]}  h3 {[%clk 0:00:45]} 39. gxh3 {[%clk 0:00:25]}  Bxh3 {[%clk 0:00:46]} 40. Be1 {[%clk 0:00:23]}  Kf5 {[%clk 0:00:44]} 41. Bh4 {[%clk 0:00:23]}  Bg2 {[%clk 0:00:45]} 42. Bg5 {[%clk 0:00:23]}  Bc6 {[%clk 0:00:44]} 43. Kd4 {[%clk 0:00:23]}  Ke6 {[%clk 0:00:44]} 44. b4 {[%clk 0:00:22]}  Bg2 {[%clk 0:00:44]} 45. Kc5 {[%clk 0:00:22]}  Be4 {[%clk 0:00:43]} 46. Kb6 {[%clk 0:00:23]}  Bf3 {[%clk 0:00:43]} 47. Kc7 {[%clk 0:00:23]}  Be4 {[%clk 0:00:43]} 48. Kd8 {[%clk 0:00:24]}  Bc6 {[%clk 0:00:43]} 49. Bh6 {[%clk 0:00:18]}  f6 {[%clk 0:00:40]} 50. Bg7 {[%clk 0:00:18]}  fxe5 {[%clk 0:00:39]} 51. Bxe5 {[%clk 0:00:19]}  Kf5 {[%clk 0:00:39]} 52. Kc7 {[%clk 0:00:19]}  Bb5 {[%clk 0:00:37]} 53. Kb6 {[%clk 0:00:20]}  Bf1 {[%clk 0:00:38]} 54. Kxb7 {[%clk 0:00:20]}  Be2 {[%clk 0:00:38]} 55. Kb6 {[%clk 0:00:21]}  Bf1 {[%clk 0:00:39]} 56. Kc5 {[%clk 0:00:21]}  Be2 {[%clk 0:00:39]} 57. Kc6 {[%clk 0:00:22]}  Bf1 {[%clk 0:00:39]} 58. Kd5 {[%clk 0:00:23]}  Be2 {[%clk 0:00:40]} 59. Kd4 {[%clk 0:00:21]}  Bf1 {[%clk 0:00:36]} 1/2-1/2

[Event "January 2 Early 2024"]
[Site "https://www.chess.com"]
[Date "2024.01.02"]
[Round "5"]
[White "Sadhwani, Raunak"]
[Black "Svane, Rasmus"]
[Result "1/2-1/2"]
[Board "4"]
[TimeControl "180+1"]
[WhiteFideId "35093487"]
[BlackFideId "4657101"]
[WhiteElo "3078"]
[BlackElo "2999"]
[WhiteTeam "IND"]
[BlackTeam "GER"]
[WhiteClock "0:00:59"]
[BlackClock "0:00:35"]

1. c4 {[%clk 0:03:00]}  e6 {[%clk 0:02:53]} 2. Nc3 {[%clk 0:02:57]}  d5 {[%clk 0:02:52]} 3. d4 {[%clk 0:02:56]}  a6 {[%clk 0:02:51]} 4. cxd5 {[%clk 0:02:54]}  exd5 {[%clk 0:02:52]} 5. Nf3 {[%clk 0:02:55]}  Nf6 {[%clk 0:02:51]} 6. Bg5 {[%clk 0:02:56]}  Be6 {[%clk 0:02:52]} 7. e3 {[%clk 0:02:56]}  Nbd7 {[%clk 0:02:52]} 8. Bd3 {[%clk 0:02:51]}  Bd6 {[%clk 0:02:50]} 9. Bf4 {[%clk 0:02:43]}  Bxf4 {[%clk 0:02:47]} 10. exf4 {[%clk 0:02:44]}  Bg4 {[%clk 0:02:48]} 11. O-O {[%clk 0:02:40]}  O-O {[%clk 0:02:45]} 12. h3 {[%clk 0:02:40]}  Bxf3 {[%clk 0:02:45]} 13. Qxf3 {[%clk 0:02:41]}  c6 {[%clk 0:02:45]} 14. Rad1 {[%clk 0:02:41]}  Qb6 {[%clk 0:02:41]} 15. Rd2 {[%clk 0:02:39]}  Rfe8 {[%clk 0:02:10]} 16. g4 {[%clk 0:02:38]}  g6 {[%clk 0:02:09]} 17. Bb1 {[%clk 0:02:37]}  Re7 {[%clk 0:02:05]} 18. g5 {[%clk 0:02:35]}  Nh5 {[%clk 0:02:03]} 19. f5 {[%clk 0:02:36]}  Rae8 {[%clk 0:02:02]} 20. f6 {[%clk 0:02:36]}  Re1 {[%clk 0:01:56]} 21. Ne2 {[%clk 0:02:25]}  Rxf1+ {[%clk 0:01:53]} 22. Kxf1 {[%clk 0:02:26]}  Qc7 {[%clk 0:01:48]} 23. Kg1 {[%clk 0:02:19]}  Nf8 {[%clk 0:01:48]} 24. Bf5 {[%clk 0:02:16]}  Nxf6 {[%clk 0:01:20]} 25. gxf6 {[%clk 0:02:06]}  gxf5 {[%clk 0:01:20]} 26. Qxf5 {[%clk 0:01:40]}  Ng6 {[%clk 0:01:20]} 27. Kf1 {[%clk 0:01:21]}  Re6 {[%clk 0:01:10]} 28. Rd3 {[%clk 0:01:12]}  Qd8 {[%clk 0:00:51]} 29. Rf3 {[%clk 0:01:07]}  Qe8 {[%clk 0:00:51]} 30. Re3 {[%clk 0:00:55]}  Rxe3 {[%clk 0:00:50]} 31. fxe3 {[%clk 0:00:56]}  Qxe3 {[%clk 0:00:34]} 32. Qc8+ {[%clk 0:00:56]}  Nf8 {[%clk 0:00:34]} 33. Qg4+ {[%clk 0:00:57]}  Ng6 {[%clk 0:00:35]} 34. Qc8+ {[%clk 0:00:57]}  Nf8 {[%clk 0:00:35]} 35. Qg4+ {[%clk 0:00:58]}  Ng6 {[%clk 0:00:35]} 36. Qc8+ {[%clk 0:00:59]} 1/2-1/2

[Event "January 2 Early 2024"]
[Site "https://www.chess.com"]
[Date "2024.01.02"]
[Round "5"]
[White "Donchenko, Alexander"]
[Black "Duda, Jan-Krzysztof"]
[Result "1/2-1/2"]
[Board "7"]
[TimeControl "180+1"]
[WhiteFideId "24603295"]
[BlackFideId "1170546"]
[WhiteElo "2928"]
[BlackElo "3043"]
[WhiteTeam "GER"]
[BlackTeam "POL"]
[WhiteClock "0:00:30"]
[BlackClock "0:00:23"]

1. Nf3 {[%clk 0:02:36]}  Nf6 {[%clk 0:02:58]} 2. g3 {[%clk 0:02:37]}  d5 {[%clk 0:02:49]} 3. Bg2 {[%clk 0:02:38]}  c5 {[%clk 0:02:41]} 4. O-O {[%clk 0:02:38]}  Nc6 {[%clk 0:02:41]} 5. d4 {[%clk 0:02:38]}  e6 {[%clk 0:02:42]} 6. c4 {[%clk 0:02:38]}  dxc4 {[%clk 0:02:43]} 7. dxc5 {[%clk 0:02:38]}  Qxd1 {[%clk 0:02:42]} 8. Rxd1 {[%clk 0:02:39]}  Bxc5 {[%clk 0:02:42]} 9. Nbd2 {[%clk 0:02:40]}  c3 {[%clk 0:02:42]} 10. bxc3 {[%clk 0:02:41]}  Bd7 {[%clk 0:02:41]} 11. Nb3 {[%clk 0:02:39]}  Be7 {[%clk 0:02:40]} 12. c4 {[%clk 0:02:35]}  O-O {[%clk 0:02:39]} 13. Nfd4 {[%clk 0:02:27]}  Rac8 {[%clk 0:02:06]} 14. Nb5 {[%clk 0:02:26]}  Rfd8 {[%clk 0:02:06]} 15. Bf4 {[%clk 0:02:20]}  Be8 {[%clk 0:01:44]} 16. c5 {[%clk 0:02:09]}  Nd5 {[%clk 0:01:24]} 17. Bxd5 {[%clk 0:02:05]}  exd5 {[%clk 0:01:13]} 18. Nd6 {[%clk 0:01:56]}  Bxd6 {[%clk 0:01:11]} 19. Bxd6 {[%clk 0:01:54]}  d4 {[%clk 0:00:59]} 20. Nxd4 {[%clk 0:01:52]}  Nxd4 {[%clk 0:00:58]} 21. Rxd4 {[%clk 0:01:53]}  b6 {[%clk 0:00:55]} 22. cxb6 {[%clk 0:01:52]}  axb6 {[%clk 0:00:55]} 23. Be5 {[%clk 0:01:45]}  Rxd4 {[%clk 0:00:44]} 24. Bxd4 {[%clk 0:01:46]}  b5 {[%clk 0:00:45]} 25. a3 {[%clk 0:01:44]}  f6 {[%clk 0:00:45]} 26. f3 {[%clk 0:01:41]}  Rc2 {[%clk 0:00:44]} 27. Kf2 {[%clk 0:01:39]}  Bf7 {[%clk 0:00:45]} 28. Re1 {[%clk 0:01:27]}  Bc4 {[%clk 0:00:45]} 29. Bb6 {[%clk 0:01:19]}  Kf7 {[%clk 0:00:42]} 30. Ba5 {[%clk 0:01:20]}  h5 {[%clk 0:00:41]} 31. h3 {[%clk 0:01:20]}  Ra2 {[%clk 0:00:27]} 32. Bb4 {[%clk 0:01:19]}  f5 {[%clk 0:00:24]} 33. h4 {[%clk 0:01:14]}  g6 {[%clk 0:00:23]} 34. Ke3 {[%clk 0:01:14]}  Ke6 {[%clk 0:00:23]} 35. Kf4 {[%clk 0:00:45]}  Rxe2 {[%clk 0:00:22]} 36. Rxe2+ {[%clk 0:00:34]}  Bxe2 {[%clk 0:00:23]} 37. Ke3 {[%clk 0:00:30]}  Bc4 {[%clk 0:00:23]} 1/2-1/2

[Event "January 2 Early 2024"]
[Site "https://www.chess.com"]
[Date "2024.01.02"]
[Round "5"]
[White "Sarana, Alexey"]
[Black "Corrales Jimenez, Fidel"]
[Result "0-1"]
[Board "8"]
[TimeControl "180+1"]
[WhiteFideId "24133795"]
[BlackFideId "3506690"]
[WhiteElo "3043"]
[BlackElo "2925"]
[WhiteTeam "SRB"]
[BlackTeam "USA"]
[WhiteClock "0:00:18"]
[BlackClock "0:00:06"]

1. d4 {[%clk 0:02:59]}  Nf6 {[%clk 0:02:59]} 2. c4 {[%clk 0:02:58]}  g6 {[%clk 0:03:00]} 3. Nc3 {[%clk 0:02:58]}  d5 {[%clk 0:02:59]} 4. Bg5 {[%clk 0:02:58]}  Bg7 {[%clk 0:02:59]} 5. Bxf6 {[%clk 0:02:58]}  Bxf6 {[%clk 0:03:00]} 6. cxd5 {[%clk 0:02:59]}  c5 {[%clk 0:03:00]} 7. e3 {[%clk 0:02:57]}  cxd4 {[%clk 0:02:55]} 8. Bb5+ {[%clk 0:02:56]}  Kf8 {[%clk 0:02:54]} 9. exd4 {[%clk 0:02:55]}  Qb6 {[%clk 0:02:53]} 10. Nge2 {[%clk 0:02:54]}  a6 {[%clk 0:02:51]} 11. Bd3 {[%clk 0:02:53]}  Qxb2 {[%clk 0:02:49]} 12. O-O {[%clk 0:02:52]}  Qa3 {[%clk 0:02:39]} 13. Ne4 {[%clk 0:02:50]}  Kg7 {[%clk 0:02:36]} 14. Qd2 {[%clk 0:02:46]}  Rd8 {[%clk 0:02:32]} 15. d6 {[%clk 0:02:46]}  Nd7 {[%clk 0:02:12]} 16. Rab1 {[%clk 0:02:29]}  exd6 {[%clk 0:01:56]} 17. Rb3 {[%clk 0:02:29]}  Qa4 {[%clk 0:01:56]} 18. Nxd6 {[%clk 0:02:27]}  Qc6 {[%clk 0:01:49]} 19. Qf4 {[%clk 0:02:19]}  Nf8 {[%clk 0:01:29]} 20. Nxc8 {[%clk 0:02:18]}  Raxc8 {[%clk 0:01:30]} 21. Be4 {[%clk 0:02:14]}  Qd6 {[%clk 0:01:30]} 22. Qf3 {[%clk 0:02:08]}  b5 {[%clk 0:01:28]} 23. Rd1 {[%clk 0:02:00]}  Rc4 {[%clk 0:01:27]} 24. Bd3 {[%clk 0:01:58]}  Ra4 {[%clk 0:01:27]} 25. Bb1 {[%clk 0:01:50]}  Bxd4 {[%clk 0:01:18]} 26. Rbd3 {[%clk 0:01:50]}  Ne6 {[%clk 0:01:17]} 27. Bc2 {[%clk 0:01:50]}  Rb4 {[%clk 0:00:44]} 28. Bb3 {[%clk 0:01:43]}  Qe5 {[%clk 0:00:14]} 29. h4 {[%clk 0:01:34]}  Rd6 {[%clk 0:00:13]} 30. Kf1 {[%clk 0:01:23]}  Bc5 {[%clk 0:00:12]} 31. g3 {[%clk 0:01:10]}  Rxd3 {[%clk 0:00:12]} 32. Rxd3 {[%clk 0:01:11]}  Qf6 {[%clk 0:00:11]} 33. Qxf6+ {[%clk 0:00:37]}  Kxf6 {[%clk 0:00:12]} 34. Nc3 {[%clk 0:00:38]}  Rd4 {[%clk 0:00:03]} 35. Rf3+ {[%clk 0:00:38]}  Ke7 {[%clk 0:00:03]} 36. Nd5+ {[%clk 0:00:39]}  Kd6 {[%clk 0:00:04]} 37. Rxf7 {[%clk 0:00:36]}  a5 {[%clk 0:00:04]} 38. Nf6 {[%clk 0:00:32]}  a4 {[%clk 0:00:04]} 39. Ne8+ {[%clk 0:00:32]}  Ke5 {[%clk 0:00:04]} 40. f4+ {[%clk 0:00:31]}  Ke4 {[%clk 0:00:03]} 41. Bc2+ {[%clk 0:00:17]}  Kf3 {[%clk 0:00:03]} 42. Nf6 {[%clk 0:00:18]}  Rd2 {[%clk 0:00:03]} 43. Be4+ {[%clk 0:00:18]}  Kxg3 {[%clk 0:00:03]} 44. Ke1 {[%clk 0:00:18]}  Rf2 {[%clk 0:00:04]} 45. f5 {[%clk 0:00:18]}  Bb4+ {[%clk 0:00:05]} 46. Kd1 {[%clk 0:00:18]}  Nd4 {[%clk 0:00:05]} 47. fxg6 {[%clk 0:00:18]}  Rf1# {[%clk 0:00:06]} 0-1

[Event "January 2 Early 2024"]
[Site "https://www.chess.com"]
[Date "2024.01.02"]
[Round "5"]
[White "Bluebaum, Matthias"]
[Black "Maksimovic, Bojan"]
[Result "1/2-1/2"]
[Board "11"]
[TimeControl "180+1"]
[WhiteFideId "24651516"]
[BlackFideId "14408120"]
[WhiteElo "3011"]
[BlackElo "2867"]
[WhiteTeam "GER"]
[BlackTeam "BIH"]
[WhiteClock "0:00:20"]
[BlackClock "0:00:20"]

1. d4 {[%clk 0:03:00]}  a6 {[%clk 0:03:00]} 2. c4 {[%clk 0:03:00]}  b5 {[%clk 0:03:00]} 3. Nc3 {[%clk 0:03:01]}  b4 {[%clk 0:02:56]} 4. Ne4 {[%clk 0:03:01]}  e6 {[%clk 0:02:47]} 5. Ng3 {[%clk 0:02:58]}  c5 {[%clk 0:02:43]} 6. d5 {[%clk 0:02:56]}  exd5 {[%clk 0:02:16]} 7. cxd5 {[%clk 0:02:48]}  d6 {[%clk 0:02:16]} 8. e4 {[%clk 0:02:47]}  Nf6 {[%clk 0:02:16]} 9. Be2 {[%clk 0:02:39]}  Be7 {[%clk 0:02:16]} 10. Nf3 {[%clk 0:02:40]}  O-O {[%clk 0:02:16]} 11. O-O {[%clk 0:02:40]}  Re8 {[%clk 0:02:15]} 12. h3 {[%clk 0:02:39]}  Bf8 {[%clk 0:02:14]} 13. Bf4 {[%clk 0:02:38]}  Nxe4 {[%clk 0:01:59]} 14. Bd3 {[%clk 0:02:33]}  Nxg3 {[%clk 0:01:56]} 15. fxg3 {[%clk 0:02:34]}  Nd7 {[%clk 0:01:45]} 16. Bxh7+ {[%clk 0:02:14]}  Kxh7 {[%clk 0:01:46]} 17. Ng5+ {[%clk 0:02:14]}  Kg8 {[%clk 0:01:46]} 18. Qh5 {[%clk 0:02:14]}  Nf6 {[%clk 0:01:45]} 19. Qxf7+ {[%clk 0:02:15]}  Kh8 {[%clk 0:01:46]} 20. Qg6 {[%clk 0:02:16]}  Re7 {[%clk 0:01:40]} 21. Rae1 {[%clk 0:01:15]}  Qe8 {[%clk 0:01:35]} 22. Qb1 {[%clk 0:01:15]}  g6 {[%clk 0:00:42]} 23. Bxd6 {[%clk 0:01:06]}  Bf5 {[%clk 0:00:41]} 24. Rxe7 {[%clk 0:00:44]}  Bxe7 {[%clk 0:00:35]} 25. Rxf5 {[%clk 0:00:38]}  gxf5 {[%clk 0:00:20]} 26. Qxf5 {[%clk 0:00:39]}  Qd7 {[%clk 0:00:21]} 27. Qg6 {[%clk 0:00:31]}  Rf8 {[%clk 0:00:19]} 28. Qh6+ {[%clk 0:00:29]}  Kg8 {[%clk 0:00:19]} 29. Qg6+ {[%clk 0:00:30]}  Kh8 {[%clk 0:00:20]} 30. Qh6+ {[%clk 0:00:20]}  Kg8 {[%clk 0:00:20]} 31. Qg6+ {[%clk 0:00:20]}  Kh8 {[%clk 0:00:20]} 1/2-1/2